[Event "Titled Tuesday Blitz May 03 Late 2022"]
[White "Vega Gutierrez, Sabrina"]
[Black "Gomez Dieguez, David"]
[WhiteFideId "2219026"]
[BlackFideId "22223630"]
[WhiteElo "2286"]
[BlackElo "2115"]
[Result "1-0"]
[Round "05"]
[TimeControl "180+1"]
[Date "2022.05.03"]
[WhiteClock "0:00:28"]
[BlackClock "0:00:25"]

1. e4 {[%clk 0:03:00]}  c6 {[%clk 0:02:59]} 2. d4 {[%clk 0:03:00]}  d5 {[%clk 0:03:00]} 3. e5 {[%clk 0:03:01]}  c5 {[%clk 0:03:00]} 4. dxc5 {[%clk 0:03:00]}  e6 {[%clk 0:03:01]} 5. a3 {[%clk 0:02:59]}  Bxc5 {[%clk 0:02:57]} 6. b4 {[%clk 0:02:59]}  Be7 {[%clk 0:02:57]} 7. Nf3 {[%clk 0:02:59]}  Nd7 {[%clk 0:02:57]} 8. Bd3 {[%clk 0:02:53]}  a5 {[%clk 0:02:53]} 9. b5 {[%clk 0:02:38]}  f6 {[%clk 0:02:52]} 10. Bb2 {[%clk 0:02:37]}  Nh6 {[%clk 0:02:52]} 11. O-O {[%clk 0:02:11]}  Nf7 {[%clk 0:02:52]} 12. exf6 {[%clk 0:02:02]}  Bxf6 {[%clk 0:02:53]} 13. Bxf6 {[%clk 0:02:01]}  Qxf6 {[%clk 0:02:54]} 14. Nbd2 {[%clk 0:02:01]}  e5 {[%clk 0:02:50]} 15. c4 {[%clk 0:01:35]}  dxc4 {[%clk 0:02:50]} 16. Bxc4 {[%clk 0:01:28]}  O-O {[%clk 0:02:50]} 17. Ne4 {[%clk 0:01:27]}  Qe7 {[%clk 0:02:40]} 18. Nfg5 {[%clk 0:01:24]}  Nf6 {[%clk 0:01:54]} 19. Nxf6+ {[%clk 0:01:19]}  Qxf6 {[%clk 0:01:49]} 20. Qh5 {[%clk 0:01:12]}  Qg6 {[%clk 0:01:32]} 21. Qxg6 {[%clk 0:01:10]}  hxg6 {[%clk 0:01:33]} 22. Rae1 {[%clk 0:00:51]}  e4 {[%clk 0:01:25]} 23. Rxe4 {[%clk 0:00:50]}  Bf5 {[%clk 0:01:25]} 24. Re7 {[%clk 0:00:50]}  Rac8 {[%clk 0:01:19]} 25. Bxf7+ {[%clk 0:00:48]}  Kh8 {[%clk 0:01:20]} 26. Bd5 {[%clk 0:00:45]}  Rc5 {[%clk 0:01:17]} 27. Rd1 {[%clk 0:00:43]}  Rxb5 {[%clk 0:01:14]} 28. h3 {[%clk 0:00:38]}  Bc2 {[%clk 0:00:58]} 29. Rd2 {[%clk 0:00:38]}  Rb1+ {[%clk 0:00:57]} 30. Kh2 {[%clk 0:00:38]}  Rd1 {[%clk 0:00:53]} 31. Rxd1 {[%clk 0:00:37]}  Bxd1 {[%clk 0:00:53]} 32. Rxb7 {[%clk 0:00:29]}  Be2 {[%clk 0:00:36]} 33. Bf7 {[%clk 0:00:28]}  Ba6 {[%clk 0:00:32]} 34. Re7 {[%clk 0:00:28]}  Bb5 {[%clk 0:00:32]} 35. Re4 {[%clk 0:00:28]}  Rxf7 {[%clk 0:00:27]} 36. Nxf7+ {[%clk 0:00:28]}  Kg8 {[%clk 0:00:27]} 37. Ng5 {[%clk 0:00:28]}  Bc6 {[%clk 0:00:26]} 38. Re5 {[%clk 0:00:28]}  Kf8 {[%clk 0:00:26]} 39. Rxa5 {[%clk 0:00:28]}  Ke7 {[%clk 0:00:26]} 40. Ra7+ {[%clk 0:00:28]}  Kf6 {[%clk 0:00:26]} 41. h4 {[%clk 0:00:28]}  Bd5 {[%clk 0:00:25]} 42. g4 {[%clk 0:00:27]}  Ke5 {[%clk 0:00:25]} 43. Kg3 {[%clk 0:00:27]}  Kd4 {[%clk 0:00:25]} 44. f4 {[%clk 0:00:28]}  Ke3 {[%clk 0:00:25]} 45. Rxg7 {[%clk 0:00:28]} 1-0


[Site "https://www.chess.com"]

[Event "Titled Tuesday Blitz May 03 Late 2022"]
[White "Vujic, Mihailo"]
[Black "Gurevich, Dmitry"]
[WhiteFideId "918873"]
[BlackFideId "2000407"]
[WhiteElo "2256"]
[BlackElo "2506"]
[Result "1-0"]
[Round "05"]
[TimeControl "180+1"]
[Date "2022.05.03"]
[WhiteClock "0:00:04"]
[BlackClock "0:00:21"]

1. e4 {[%clk 0:02:57]}  c5 {[%clk 0:02:58]} 2. c3 {[%clk 0:02:57]}  d5 {[%clk 0:02:57]} 3. exd5 {[%clk 0:02:57]}  Qxd5 {[%clk 0:02:57]} 4. d4 {[%clk 0:02:57]}  g6 {[%clk 0:02:56]} 5. Nf3 {[%clk 0:02:58]}  Bg7 {[%clk 0:02:56]} 6. Na3 {[%clk 0:02:59]}  Nf6 {[%clk 0:02:54]} 7. Bc4 {[%clk 0:02:59]}  Qe4+ {[%clk 0:02:52]} 8. Be3 {[%clk 0:03:00]}  O-O {[%clk 0:02:50]} 9. dxc5 {[%clk 0:02:59]}  Ng4 {[%clk 0:02:50]} 10. Qe2 {[%clk 0:02:45]}  Nxe3 {[%clk 0:02:48]} 11. Qxe3 {[%clk 0:02:44]}  Qxe3+ {[%clk 0:02:47]} 12. fxe3 {[%clk 0:02:45]}  Nd7 {[%clk 0:02:46]} 13. O-O {[%clk 0:02:40]}  Nxc5 {[%clk 0:02:46]} 14. Ng5 {[%clk 0:02:39]}  e6 {[%clk 0:02:45]} 15. Nc2 {[%clk 0:02:25]}  Bh6 {[%clk 0:02:44]} 16. Nf3 {[%clk 0:02:23]}  b6 {[%clk 0:02:43]} 17. Rad1 {[%clk 0:02:15]}  Bb7 {[%clk 0:02:42]} 18. Be2 {[%clk 0:01:49]}  Be4 {[%clk 0:02:38]} 19. Nfe1 {[%clk 0:01:44]}  Na4 {[%clk 0:02:32]} 20. Rd4 {[%clk 0:01:40]}  Bc6 {[%clk 0:02:15]} 21. Nd3 {[%clk 0:01:19]}  Rad8 {[%clk 0:02:05]} 22. Rd1 {[%clk 0:01:09]}  Rxd4 {[%clk 0:02:00]} 23. exd4 {[%clk 0:01:06]}  Be4 {[%clk 0:01:59]} 24. Nce1 {[%clk 0:00:57]}  Be3+ {[%clk 0:01:55]} 25. Kf1 {[%clk 0:00:56]}  Rc8 {[%clk 0:01:55]} 26. Bf3 {[%clk 0:00:54]}  Bxf3 {[%clk 0:01:47]} 27. Nxf3 {[%clk 0:00:51]}  Bh6 {[%clk 0:01:47]} 28. Ke2 {[%clk 0:00:45]}  Kf8 {[%clk 0:01:44]} 29. Nfe5 {[%clk 0:00:43]}  Ke8 {[%clk 0:01:44]} 30. Rf1 {[%clk 0:00:38]}  Rc7 {[%clk 0:01:44]} 31. Ng4 {[%clk 0:00:36]}  Bg7 {[%clk 0:01:43]} 32. Nf6+ {[%clk 0:00:35]}  Ke7 {[%clk 0:01:40]} 33. Nxh7 {[%clk 0:00:21]}  f6 {[%clk 0:01:38]} 34. g4 {[%clk 0:00:21]}  g5 {[%clk 0:01:34]} 35. h4 {[%clk 0:00:20]}  gxh4 {[%clk 0:01:34]} 36. g5 {[%clk 0:00:20]}  fxg5 {[%clk 0:01:23]} 37. Nxg5 {[%clk 0:00:21]}  Bf6 {[%clk 0:01:22]} 38. Ne4 {[%clk 0:00:19]}  Bg7 {[%clk 0:01:20]} 39. Rh1 {[%clk 0:00:18]}  Bf6 {[%clk 0:01:08]} 40. Nxf6 {[%clk 0:00:17]}  Kxf6 {[%clk 0:01:08]} 41. Rxh4 {[%clk 0:00:16]}  Rg7 {[%clk 0:01:08]} 42. Rf4+ {[%clk 0:00:15]}  Ke7 {[%clk 0:01:07]} 43. Ke3 {[%clk 0:00:14]}  Rg2 {[%clk 0:01:05]} 44. Rf2 {[%clk 0:00:14]}  Rg3+ {[%clk 0:01:04]} 45. Rf3 {[%clk 0:00:13]}  Rg2 {[%clk 0:01:04]} 46. Rf2 {[%clk 0:00:13]}  Rg3+ {[%clk 0:01:04]} 47. Ke4 {[%clk 0:00:13]}  Rg4+ {[%clk 0:01:01]} 48. Rf4 {[%clk 0:00:13]}  Rg2 {[%clk 0:00:59]} 49. Rh4 {[%clk 0:00:12]}  Kd6 {[%clk 0:00:46]} 50. Rh7 {[%clk 0:00:11]}  a5 {[%clk 0:00:43]} 51. Ne5 {[%clk 0:00:10]}  Nc5+ {[%clk 0:00:33]} 52. dxc5+ {[%clk 0:00:09]}  Kxc5 {[%clk 0:00:33]} 53. Nd3+ {[%clk 0:00:09]}  Kb5 {[%clk 0:00:32]} 54. Re7 {[%clk 0:00:08]}  Re2+ {[%clk 0:00:30]} 55. Kd4 {[%clk 0:00:08]}  a4 {[%clk 0:00:23]} 56. c4+ {[%clk 0:00:06]}  Ka6 {[%clk 0:00:21]} 57. Nb4+ {[%clk 0:00:04]} 1-0


[Site "https://www.chess.com"]

[Event "Titled Tuesday Blitz May 03 Late 2022"]
[White "Yurovskykh, Oleksandr"]
[Black "Avalos Parra, Joao"]
[WhiteFideId "14134020"]
[BlackFideId "3402541"]
[WhiteElo "2292"]
[BlackElo "2173"]
[Result "0-1"]
[Round "05"]
[TimeControl "180+1"]
[Date "2022.05.03"]
[WhiteClock "0:00:05"]
[BlackClock "0:00:55"]

1. d4 {[%clk 0:03:00]}  d5 {[%clk 0:02:58]} 2. c4 {[%clk 0:02:59]}  e6 {[%clk 0:02:58]} 3. cxd5 {[%clk 0:02:58]}  exd5 {[%clk 0:02:58]} 4. Nc3 {[%clk 0:02:58]}  a6 {[%clk 0:02:58]} 5. Nf3 {[%clk 0:02:54]}  Nf6 {[%clk 0:02:57]} 6. Bg5 {[%clk 0:02:54]}  Be7 {[%clk 0:02:56]} 7. e3 {[%clk 0:02:53]}  Nbd7 {[%clk 0:02:52]} 8. Qc2 {[%clk 0:02:51]}  O-O {[%clk 0:02:51]} 9. Bd3 {[%clk 0:02:50]}  h6 {[%clk 0:02:40]} 10. Bh4 {[%clk 0:02:47]}  c6 {[%clk 0:02:34]} 11. O-O {[%clk 0:02:43]}  Re8 {[%clk 0:02:30]} 12. Rab1 {[%clk 0:02:36]}  Ne4 {[%clk 0:02:26]} 13. Bxe7 {[%clk 0:02:33]}  Qxe7 {[%clk 0:02:27]} 14. b4 {[%clk 0:02:21]}  Ndf6 {[%clk 0:02:25]} 15. a4 {[%clk 0:02:16]}  Nxc3 {[%clk 0:02:15]} 16. Qxc3 {[%clk 0:02:17]}  Ne4 {[%clk 0:02:15]} 17. Qc2 {[%clk 0:02:10]}  Qd6 {[%clk 0:01:57]} 18. b5 {[%clk 0:01:45]}  axb5 {[%clk 0:01:53]} 19. axb5 {[%clk 0:01:46]}  Be6 {[%clk 0:01:16]} 20. bxc6 {[%clk 0:01:24]}  bxc6 {[%clk 0:01:17]} 21. Bxe4 {[%clk 0:01:00]}  dxe4 {[%clk 0:01:14]} 22. Ne5 {[%clk 0:01:00]}  Bd5 {[%clk 0:01:14]} 23. Rfc1 {[%clk 0:00:48]}  Ra2 {[%clk 0:01:12]} 24. Qc5 {[%clk 0:00:45]}  Qf6 {[%clk 0:01:11]} 25. Rc2 {[%clk 0:00:35]}  Rea8 {[%clk 0:01:07]} 26. g3 {[%clk 0:00:13]}  h5 {[%clk 0:01:01]} 27. Rbc1 {[%clk 0:00:07]}  Rxc2 {[%clk 0:00:59]} 28. Qxc2 {[%clk 0:00:06]}  Ra2 {[%clk 0:00:55]} 29. Qc5 {[%clk 0:00:06]}  Qxf2+ {[%clk 0:00:54]} 30. Kh1 {[%clk 0:00:05]}  Qg2# {[%clk 0:00:55]} 0-1


[Site "https://www.chess.com"]

[Event "Titled Tuesday Blitz May 03 Late 2022"]
[White "Zhigalko, Sergei"]
[Black "Goltsev, Dmitry"]
[WhiteFideId "13502956"]
[BlackFideId "24176710"]
[WhiteElo "2662"]
[BlackElo "2273"]
[Result "1-0"]
[Round "05"]
[TimeControl "180+1"]
[Date "2022.05.03"]
[WhiteClock "0:00:03"]
[BlackClock "0:00:05"]

1. e4 {[%clk 0:03:00]}  e6 {[%clk 0:02:35]} 2. d4 {[%clk 0:03:00]}  d5 {[%clk 0:02:36]} 3. e5 {[%clk 0:03:00]}  c5 {[%clk 0:02:36]} 4. c3 {[%clk 0:03:00]}  Nc6 {[%clk 0:02:36]} 5. Nf3 {[%clk 0:03:01]}  Nge7 {[%clk 0:02:36]} 6. Na3 {[%clk 0:03:01]}  Nf5 {[%clk 0:02:37]} 7. Nc2 {[%clk 0:03:01]}  cxd4 {[%clk 0:02:37]} 8. cxd4 {[%clk 0:03:02]}  h5 {[%clk 0:02:38]} 9. Bd3 {[%clk 0:02:59]}  Be7 {[%clk 0:02:37]} 10. h4 {[%clk 0:02:48]}  g6 {[%clk 0:02:12]} 11. g3 {[%clk 0:02:38]}  Bd7 {[%clk 0:02:11]} 12. O-O {[%clk 0:02:37]}  Qb6 {[%clk 0:02:08]} 13. Rb1 {[%clk 0:02:32]}  a5 {[%clk 0:01:55]} 14. Bxf5 {[%clk 0:02:31]}  exf5 {[%clk 0:01:49]} 15. Bg5 {[%clk 0:02:32]}  Be6 {[%clk 0:01:47]} 16. Bxe7 {[%clk 0:02:28]}  Kxe7 {[%clk 0:01:47]} 17. Qd2 {[%clk 0:02:29]}  Rhc8 {[%clk 0:01:46]} 18. Ne3 {[%clk 0:02:05]}  Qb4 {[%clk 0:01:36]} 19. Qd3 {[%clk 0:02:00]}  a4 {[%clk 0:01:33]} 20. Rfc1 {[%clk 0:01:59]}  Na5 {[%clk 0:01:32]} 21. Rc3 {[%clk 0:01:48]}  Rc6 {[%clk 0:01:25]} 22. Rxc6 {[%clk 0:01:29]}  bxc6 {[%clk 0:01:22]} 23. a3 {[%clk 0:01:26]}  Qb5 {[%clk 0:01:17]} 24. Qd2 {[%clk 0:01:21]}  Rb8 {[%clk 0:01:17]} 25. Ng5 {[%clk 0:01:05]}  Rb6 {[%clk 0:00:45]} 26. Qc3 {[%clk 0:00:54]}  Nb3 {[%clk 0:00:34]} 27. Rd1 {[%clk 0:00:50]}  Qa5 {[%clk 0:00:32]} 28. Qc2 {[%clk 0:00:50]}  c5 {[%clk 0:00:26]} 29. dxc5 {[%clk 0:00:38]}  Qxc5 {[%clk 0:00:27]} 30. Qxc5+ {[%clk 0:00:38]}  Nxc5 {[%clk 0:00:28]} 31. Nxd5+ {[%clk 0:00:39]}  Bxd5 {[%clk 0:00:26]} 32. Rxd5 {[%clk 0:00:40]}  Ne6 {[%clk 0:00:19]} 33. Rd2 {[%clk 0:00:17]}  Nxg5 {[%clk 0:00:19]} 34. hxg5 {[%clk 0:00:18]}  Ke6 {[%clk 0:00:20]} 35. f4 {[%clk 0:00:18]}  Rb3 {[%clk 0:00:20]} 36. Kf2 {[%clk 0:00:19]}  Ke7 {[%clk 0:00:19]} 37. Rc2 {[%clk 0:00:17]}  Ke6 {[%clk 0:00:17]} 38. Kg2 {[%clk 0:00:18]}  Ke7 {[%clk 0:00:16]} 39. Kh3 {[%clk 0:00:18]}  Ke6 {[%clk 0:00:12]} 40. Rc6+ {[%clk 0:00:17]}  Ke7 {[%clk 0:00:12]} 41. Rc7+ {[%clk 0:00:18]}  Ke6 {[%clk 0:00:12]} 42. Rc6+ {[%clk 0:00:10]}  Ke7 {[%clk 0:00:12]} 43. Rc4 {[%clk 0:00:08]}  Rxb2 {[%clk 0:00:12]} 44. Rxa4 {[%clk 0:00:09]}  Ra2 {[%clk 0:00:12]} 45. Ra7+ {[%clk 0:00:08]}  Ke6 {[%clk 0:00:13]} 46. Ra6+ {[%clk 0:00:07]}  Ke7 {[%clk 0:00:13]} 47. Ra7+ {[%clk 0:00:07]}  Ke6 {[%clk 0:00:13]} 48. a4 {[%clk 0:00:06]}  Ra3 {[%clk 0:00:12]} 49. Ra6+ {[%clk 0:00:06]}  Ke7 {[%clk 0:00:12]} 50. Ra7+ {[%clk 0:00:06]}  Ke6 {[%clk 0:00:12]} 51. a5 {[%clk 0:00:07]}  Ra2 {[%clk 0:00:12]} 52. Ra6+ {[%clk 0:00:07]}  Ke7 {[%clk 0:00:13]} 53. Ra8 {[%clk 0:00:07]}  Ke6 {[%clk 0:00:11]} 54. a6 {[%clk 0:00:07]}  Ke7 {[%clk 0:00:08]} 55. a7 {[%clk 0:00:04]}  Ra3 {[%clk 0:00:07]} 56. e6 {[%clk 0:00:04]}  h4 {[%clk 0:00:05]} 57. Kxh4 {[%clk 0:00:01]}  Ra1 {[%clk 0:00:05]} 58. Kh3 {[%clk 0:00:01]}  Ra2 {[%clk 0:00:02]} 59. g4 {[%clk 0:00:01]}  fxg4+ {[%clk 0:00:02]} 60. Kxg4 {[%clk 0:00:02]}  Ra5 {[%clk 0:00:02]} 61. Kg3 {[%clk 0:00:02]}  Ra3+ {[%clk 0:00:02]} 62. Kg4 {[%clk 0:00:02]}  Ra1 {[%clk 0:00:03]} 63. exf7 {[%clk 0:00:03]}  Kxf7 {[%clk 0:00:04]} 64. Rh8 {[%clk 0:00:03]}  Rg1+ {[%clk 0:00:05]} 65. Kf3 {[%clk 0:00:03]}  Rf1+ {[%clk 0:00:05]} 66. Kg2 {[%clk 0:00:03]} 1-0


[Site "https://www.chess.com"]

[Event "Titled Tuesday Blitz May 03 Late 2022"]
[White "Zhou, Qiyu"]
[Black "Richter, Nils"]
[WhiteFideId "505161"]
[BlackFideId "12990809"]
[WhiteElo "1925"]
[BlackElo "2243"]
[Result "0-1"]
[Round "05"]
[TimeControl "180+1"]
[Date "2022.05.03"]
[WhiteClock "0:00:24"]
[BlackClock "0:01:50"]

1. e4 {[%clk 0:03:00]}  e6 {[%clk 0:02:59]} 2. d4 {[%clk 0:03:00]}  d5 {[%clk 0:02:59]} 3. Nc3 {[%clk 0:03:00]}  Nf6 {[%clk 0:02:59]} 4. e5 {[%clk 0:03:00]}  Nfd7 {[%clk 0:03:00]} 5. f4 {[%clk 0:03:00]}  c5 {[%clk 0:02:59]} 6. Nf3 {[%clk 0:03:01]}  Nc6 {[%clk 0:03:00]} 7. Be3 {[%clk 0:03:01]}  a6 {[%clk 0:03:00]} 8. Qd2 {[%clk 0:03:02]}  b5 {[%clk 0:02:53]} 9. dxc5 {[%clk 0:03:02]}  Bxc5 {[%clk 0:02:52]} 10. O-O-O {[%clk 0:03:01]}  Qb6 {[%clk 0:02:48]} 11. Bxc5 {[%clk 0:03:00]}  Nxc5 {[%clk 0:02:48]} 12. Nd4 {[%clk 0:03:00]}  Bb7 {[%clk 0:02:44]} 13. Kb1 {[%clk 0:02:52]}  b4 {[%clk 0:02:40]} 14. Nce2 {[%clk 0:02:51]}  Ne4 {[%clk 0:02:40]} 15. Qe3 {[%clk 0:02:31]}  O-O {[%clk 0:02:36]} 16. g4 {[%clk 0:02:17]}  Nxd4 {[%clk 0:02:31]} 17. Qxd4 {[%clk 0:02:09]}  Qxd4 {[%clk 0:02:27]} 18. Rxd4 {[%clk 0:02:10]}  a5 {[%clk 0:02:27]} 19. Rg1 {[%clk 0:02:03]}  Ba6 {[%clk 0:02:26]} 20. Ng3 {[%clk 0:01:56]}  Bxf1 {[%clk 0:02:22]} 21. Rxf1 {[%clk 0:01:48]}  Nxg3 {[%clk 0:02:21]} 22. hxg3 {[%clk 0:01:48]}  Rfc8 {[%clk 0:02:21]} 23. g5 {[%clk 0:01:47]}  h5 {[%clk 0:02:16]} 24. gxh6 {[%clk 0:01:45]}  gxh6 {[%clk 0:02:17]} 25. g4 {[%clk 0:01:26]}  Rc7 {[%clk 0:02:05]} 26. f5 {[%clk 0:01:25]}  Rac8 {[%clk 0:02:05]} 27. Rf2 {[%clk 0:01:22]}  Rc4 {[%clk 0:02:04]} 28. Rdf4 {[%clk 0:01:22]}  Rxf4 {[%clk 0:02:00]} 29. Rxf4 {[%clk 0:01:22]}  Rc4 {[%clk 0:01:59]} 30. Rxc4 {[%clk 0:00:37]}  dxc4 {[%clk 0:02:00]} 31. Kc1 {[%clk 0:00:38]}  f6 {[%clk 0:01:53]} 32. fxe6 {[%clk 0:00:26]}  fxe5 {[%clk 0:01:52]} 33. Kd2 {[%clk 0:00:25]}  Kf8 {[%clk 0:01:52]} 34. a3 {[%clk 0:00:22]}  Ke7 {[%clk 0:01:52]} 35. axb4 {[%clk 0:00:23]}  axb4 {[%clk 0:01:53]} 36. b3 {[%clk 0:00:19]}  cxb3 {[%clk 0:01:49]} 37. cxb3 {[%clk 0:00:19]}  Kxe6 {[%clk 0:01:49]} 38. Kd3 {[%clk 0:00:20]}  Kd5 {[%clk 0:01:48]} 39. Ke3 {[%clk 0:00:21]}  e4 {[%clk 0:01:49]} 40. Kf4 {[%clk 0:00:20]}  Kd4 {[%clk 0:01:49]} 41. Kf5 {[%clk 0:00:21]}  e3 {[%clk 0:01:49]} 42. Kg6 {[%clk 0:00:22]}  e2 {[%clk 0:01:50]} 43. Kxh6 {[%clk 0:00:23]}  e1=Q {[%clk 0:01:50]} 44. g5 {[%clk 0:00:24]} 0-1


[Site "https://www.chess.com"]

[Event "Titled Tuesday Blitz May 03 Late 2022"]
[White "Zlatin, Alexander"]
[Black "Mekhane, Adam"]
[WhiteFideId "2810549"]
[BlackFideId "36050601"]
[WhiteElo "2228"]
[BlackElo "2002"]
[Result "0-1"]
[Round "05"]
[TimeControl "180+1"]
[Date "2022.05.03"]
[WhiteClock "0:00:05"]
[BlackClock "0:00:49"]

1. d4 {[%clk 0:02:56]}  Nf6 {[%clk 0:02:59]} 2. Nc3 {[%clk 0:02:55]}  d5 {[%clk 0:02:59]} 3. Bf4 {[%clk 0:02:56]}  g6 {[%clk 0:02:58]} 4. e3 {[%clk 0:02:56]}  Bg7 {[%clk 0:02:58]} 5. h4 {[%clk 0:02:56]}  h5 {[%clk 0:02:57]} 6. Nf3 {[%clk 0:02:56]}  O-O {[%clk 0:02:56]} 7. Be2 {[%clk 0:02:54]}  c5 {[%clk 0:02:56]} 8. O-O {[%clk 0:02:54]}  Nc6 {[%clk 0:02:55]} 9. Ne5 {[%clk 0:02:47]}  Bf5 {[%clk 0:02:29]} 10. Bf3 {[%clk 0:02:43]}  cxd4 {[%clk 0:02:22]} 11. exd4 {[%clk 0:02:40]}  Nb4 {[%clk 0:02:20]} 12. Rc1 {[%clk 0:02:36]}  Rc8 {[%clk 0:02:17]} 13. a3 {[%clk 0:02:34]}  Nc6 {[%clk 0:02:18]} 14. Nxc6 {[%clk 0:02:29]}  bxc6 {[%clk 0:02:15]} 15. Re1 {[%clk 0:02:25]}  Qd7 {[%clk 0:01:49]} 16. Qe2 {[%clk 0:02:18]}  Rfe8 {[%clk 0:01:48]} 17. Na4 {[%clk 0:02:12]}  Ne4 {[%clk 0:01:47]} 18. c3 {[%clk 0:01:52]}  c5 {[%clk 0:01:40]} 19. Nxc5 {[%clk 0:01:49]}  Nxc5 {[%clk 0:01:39]} 20. dxc5 {[%clk 0:01:50]}  Rxc5 {[%clk 0:01:39]} 21. Rcd1 {[%clk 0:01:42]}  e5 {[%clk 0:01:36]} 22. Be3 {[%clk 0:01:37]}  d4 {[%clk 0:01:28]} 23. Bg5 {[%clk 0:01:20]}  e4 {[%clk 0:01:18]} 24. cxd4 {[%clk 0:01:17]}  Rcc8 {[%clk 0:01:18]} 25. Bxh5 {[%clk 0:01:09]}  gxh5 {[%clk 0:01:18]} 26. d5 {[%clk 0:01:07]}  Bg4 {[%clk 0:01:16]} 27. f3 {[%clk 0:00:58]}  exf3 {[%clk 0:01:16]} 28. Qf2 {[%clk 0:00:56]}  fxg2 {[%clk 0:01:13]} 29. d6 {[%clk 0:00:52]}  Bxd1 {[%clk 0:01:11]} 30. Rxd1 {[%clk 0:00:50]}  Re6 {[%clk 0:01:02]} 31. Bf4 {[%clk 0:00:45]}  Rg6 {[%clk 0:00:57]} 32. Re1 {[%clk 0:00:39]}  Re8 {[%clk 0:00:54]} 33. Rc1 {[%clk 0:00:34]}  Qh3 {[%clk 0:00:53]} 34. Bh2 {[%clk 0:00:31]}  Rxd6 {[%clk 0:00:52]} 35. Qf4 {[%clk 0:00:09]}  Bd4+ {[%clk 0:00:50]} 36. Qxd4 {[%clk 0:00:06]}  Rxd4 {[%clk 0:00:51]} 37. Rc3 {[%clk 0:00:04]}  Rd1+ {[%clk 0:00:49]} 38. Kf2 {[%clk 0:00:05]}  Qxh2 {[%clk 0:00:49]} 0-1


[Site "https://www.chess.com"]

[Event "Titled Tuesday Blitz May 03 Late 2022"]
[White "Aggelis, Nikolaos"]
[Black "Zherebtsova, Alexandra"]
[WhiteFideId "4213220"]
[BlackFideId "24129518"]
[WhiteElo "2154"]
[BlackElo "2025"]
[Result "1-0"]
[Round "06"]
[TimeControl "180+1"]
[Date "2022.05.03"]
[WhiteClock "0:00:37"]
[BlackClock "0:00:12"]

1. d4 {[%clk 0:03:00]}  d5 {[%clk 0:02:55]} 2. g3 {[%clk 0:03:00]}  g6 {[%clk 0:02:53]} 3. Nf3 {[%clk 0:02:59]}  Bg7 {[%clk 0:02:53]} 4. Bg2 {[%clk 0:03:00]}  Nf6 {[%clk 0:02:52]} 5. O-O {[%clk 0:03:00]}  O-O {[%clk 0:02:52]} 6. c4 {[%clk 0:03:01]}  e6 {[%clk 0:02:51]} 7. b3 {[%clk 0:02:56]}  Nc6 {[%clk 0:02:46]} 8. Bb2 {[%clk 0:02:55]}  Qe7 {[%clk 0:02:46]} 9. Ne5 {[%clk 0:02:41]}  Nxe5 {[%clk 0:02:37]} 10. dxe5 {[%clk 0:02:41]}  Ng4 {[%clk 0:02:37]} 11. f4 {[%clk 0:02:26]}  Ne3 {[%clk 0:02:35]} 12. Qd4 {[%clk 0:02:13]}  Nxf1 {[%clk 0:02:25]} 13. Ba3 {[%clk 0:02:12]}  Qd7 {[%clk 0:02:11]} 14. Bxf8 {[%clk 0:02:11]}  Bxf8 {[%clk 0:02:11]} 15. Kxf1 {[%clk 0:02:08]}  dxc4 {[%clk 0:02:06]} 16. Qxd7 {[%clk 0:02:06]}  Bxd7 {[%clk 0:02:06]} 17. bxc4 {[%clk 0:02:03]}  Bb4 {[%clk 0:01:48]} 18. a3 {[%clk 0:01:53]}  Ba5 {[%clk 0:01:46]} 19. Ra2 {[%clk 0:01:53]}  Ba4 {[%clk 0:01:35]} 20. Nd2 {[%clk 0:01:45]}  Rd8 {[%clk 0:01:32]} 21. Ne4 {[%clk 0:01:44]}  Bb3 {[%clk 0:01:12]} 22. Rb2 {[%clk 0:01:39]}  Bxc4 {[%clk 0:01:12]} 23. Nf6+ {[%clk 0:01:29]}  Kg7 {[%clk 0:01:10]} 24. Bxb7 {[%clk 0:01:29]}  Bb6 {[%clk 0:01:00]} 25. a4 {[%clk 0:01:22]}  Rd1+ {[%clk 0:00:59]} 26. Kg2 {[%clk 0:01:20]}  Rg1+ {[%clk 0:00:54]} 27. Kh3 {[%clk 0:01:12]}  Ra1 {[%clk 0:00:36]} 28. Bc6 {[%clk 0:01:11]}  h6 {[%clk 0:00:25]} 29. Rd2 {[%clk 0:01:01]}  g5 {[%clk 0:00:18]} 30. Rd8 {[%clk 0:00:53]}  h5 {[%clk 0:00:13]} 31. Rg8+ {[%clk 0:00:40]}  Kh6 {[%clk 0:00:12]} 32. fxg5# {[%clk 0:00:37]} 1-0


[Site "https://www.chess.com"]